Workbook

Sheet Heating
B1: Newton's Laws of Heating and Cooling
C3: This DIGMath Module lets you explore
C4: Newton's Law of Heating
C5: as it applies to an objecting being heated
C6: based on the temperature R of the medium
C7: and a constant of proportionality a
B11: What is the temperature of the medium, R? | E11: =F11 -> 226 | F11: 226
C12: R is between 50 and 400
B15: Enter a value for the heating constant a | E15: =F15/100+0.01 -> 0.71 | F15: 70
C16: a is between 0.01 and 0.95
B19: What is the starting temperature T0? | E19: =F19+1 -> 61 | F19: 60
C20: T0 is between 0 and 200 | K20: Trace along the temperature curve:
M21: 40 | N21: -1.84
L23: At time t = | N23: =M21 -> 40
L24: Temperature = | N24: =LOOKUP(N23,Sheet3!A1:A101,Sheet3!B1:B101) -> 225.9998147 | O24: °
A25: Click each item below for suggestions and investigations
D26: Item 1
D27: Item 2
D28: Item 3
D29: Item 4
A33: Created by: Sheldon P. Gordon
A34: Farmingdale StateCollege
A35: Development of this module was supported by the
A36: NSF's Division of Undergraduate Education
A37: under grants DUE-0310123 and DUE-0442160.

Sheet Cooling
B1: Newton's Laws of Heating and Cooling | X1: 0 | Y1: 1
C3: This DIGMath Module lets you explore
C4: Newton's Law of Cooling
C5: as it applies to an objecting being cooled
C6: based on the temperature R of the medium
C7: and a constant of proportionality a
B11: What is the temperature of the medium, R? | E11: =F11 -> 103 | F11: 103
C12: R is between 0 and 250
B15: Enter a value for the cooling constant a | E15: =F15/100+0.01 -> 0.87 | F15: 86
C16: a is between 0.01 and 0.95
B19: What is the starting temperature T0? | E19: =F19+1 -> 355 | F19: 354
C20: T0 is between 0 and 400 | J20: Trace along the temperature curve:
L21: 44 | M21: -1.84
K23: At time t = | M23: =L21 -> 44
K24: Temperature = | M24: =LOOKUP(M23,Sheet3!F1:F101,Sheet3!G1:G101) -> 103.5498543 | N24: °
A25: Click each item below for suggestions and investigations
D26: Item 1
D27: Item 2
D28: Item 3
D29: Item 4
A32: Created by: Sheldon P. Gordon
A33: Farmingdale StateCollege
A34: Development of this module was supported by the
A35: NSF's Division of Undergraduate Education
A36: under grants DUE-0310123 and DUE-0442160.
U858: =X858 -> 0 | V858: =X858 -> 0

Sheet Sheet3
A1: 0 | B1: =T0 -> 61 | F1: 0 | G1: =T00 -> 355 | H1: 0 | I1: =LL -> 0
A2: 1 | B2: =R0+(T0-R0)*a^A2 -> 108.85 | F2: 1 | G2: =R00+(T00-R00)*aa^F2 -> 322.24 | H2: 200 | I2: =LL -> 0
A3: 2 | B3: 142.8235 | F3: 2 | G3: 293.7388
A4: 3 | B4: 166.944685 | F4: 3 | G4: 268.942756
A5: 4 | B5: 184.0707264 | F5: 4 | G5: 247.3701977
A6: 5 | B6: 196.2302157 | F6: 5 | G6: 228.602072
A7: 6 | B7: 204.8634532 | F7: 6 | G7: 212.2738027
A8: 7 | B8: 210.9930517 | F8: 7 | G8: 198.0682083
A9: 8 | B9: 215.3450667 | F9: 8 | G9: 185.7093412
A10: 9 | B10: 218.4349974 | F10: 9 | G10: 174.9571269
A11: 10 | B11: 220.6288481 | F11: 10 | G11: 165.6027004
A12: 11 | B12: 222.1864822 | F12: 11 | G12: 157.4643493
A13: 12 | B13: 223.2924023 | F13: 12 | G13: 150.3839839
A14: 13 | B14: 224.0776057 | F14: 13 | G14: 144.224066
A15: 14 | B15: 224.6351 | F15: 14 | G15: 138.8649374
A16: 15 | B16: 225.030921 | F16: 15 | G16: 134.2024956
A17: 16 | B17: 225.3119539 | F17: 16 | G17: 130.1461711
A18: 17 | B18: 225.5114873 | F18: 17 | G18: 126.6171689
A19: 18 | B19: 225.653156 | F19: 18 | G19: 123.5469369
A20: 19 | B20: 225.7537407 | F20: 19 | G20: 120.8758351
A21: 20 | B21: 225.8251559 | F21: 20 | G21: 118.5519766
A22: 21 | B22: 225.8758607 | F22: 21 | G22: 116.5302196
A23: 22 | B23: 225.9118611 | F23: 22 | G23: 114.7712911
A24: 23 | B24: 225.9374214 | F24: 23 | G24: 113.2410232
A25: 24 | B25: 225.9555692 | F25: 24 | G25: 111.9096902
A26: 25 | B26: 225.9684541 | F26: 25 | G26: 110.7514305
A27: 26 | B27: 225.9776024 | F27: 26 | G27: 109.7437445
A28: 27 | B28: 225.9840977 | F28: 27 | G28: 108.8670577
A29: 28 | B29: 225.9887094 | F29: 28 | G29: 108.1043402
A30: 29 | B30: 225.9919837 | F30: 29 | G30: 107.440776
A31: 30 | B31: 225.9943084 | F31: 30 | G31: 106.8634751
A32: 31 | B32: 225.995959 | F32: 31 | G32: 106.3612234
A33: 32 | B33: 225.9971309 | F33: 32 | G33: 105.9242643
A34: 33 | B34: =R0+(T0-R0)*a^A34 -> 225.9979629 | F34: 33 | G34: =R00+(T00-R00)*aa^F34 -> 105.54411
A35: 34 | B35: 225.9985537 | F35: 34 | G35: 105.2133757
A36: 35 | B36: 225.9989731 | F36: 35 | G36: 104.9256368
A37: 36 | B37: 225.9992709 | F37: 36 | G37: 104.675304
A38: 37 | B38: 225.9994823 | F38: 37 | G38: 104.4575145
A39: 38 | B39: 225.9996325 | F39: 38 | G39: 104.2680376
A40: 39 | B40: 225.999739 | F40: 39 | G40: 104.1031927
A41: 40 | B41: 225.9998147 | F41: 40 | G41: 103.9597777
A42: 41 | B42: 225.9998685 | F42: 41 | G42: 103.8350066
A43: 42 | B43: 225.9999066 | F43: 42 | G43: 103.7264557
A44: 43 | B44: 225.9999337 | F44: 43 | G44: 103.6320165
A45: 44 | B45: 225.9999529 | F45: 44 | G45: 103.5498543
A46: 45 | B46: 225.9999666 | F46: 45 | G46: 103.4783733
A47: 46 | B47: 225.9999763 | F47: 46 | G47: 103.4161847
A48: 47 | B48: 225.9999831 | F48: 47 | G48: 103.3620807
A49: 48 | B49: 225.999988 | F49: 48 | G49: 103.3150102
A50: 49 | B50: 225.9999915 | F50: 49 | G50: 103.2740589
A51: 50 | B51: 225.999994 | F51: 50 | G51: 103.2384312
A52: 51 | B52: 225.9999957 | F52: 51 | G52: 103.2074352
A53: 52 | B53: 225.999997 | F53: 52 | G53: 103.1804686
A54: 53 | B54: 225.9999978 | F54: 53 | G54: 103.1570077
A55: 54 | B55: 225.9999985 | F55: 54 | G55: 103.1365967
A56: 55 | B56: 225.9999989 | F56: 55 | G56: 103.1188391
A57: 56 | B57: 225.9999992 | F57: 56 | G57: 103.10339
A58: 57 | B58: 225.9999995 | F58: 57 | G58: 103.0899493
A59: 58 | B59: 225.9999996 | F59: 58 | G59: 103.0782559
A60: 59 | B60: 225.9999997 | F60: 59 | G60: 103.0680826
A61: 60 | B61: 225.9999998 | F61: 60 | G61: 103.0592319
A62: 61 | B62: 225.9999999 | F62: 61 | G62: 103.0515318
A63: 62 | B63: 225.9999999 | F63: 62 | G63: 103.0448326
A64: 63 | B64: 225.9999999 | F64: 63 | G64: 103.0390044
A65: 64 | B65: 226 | F65: 64 | G65: 103.0339338
A66: 65 | B66: =R0+(T0-R0)*a^A66 -> 226 | F66: 65 | G66: =R00+(T00-R00)*aa^F66 -> 103.0295224
A67: 66 | B67: 226 | F67: 66 | G67: 103.0256845
A68: 67 | B68: 226 | F68: 67 | G68: 103.0223455
A69: 68 | B69: 226 | F69: 68 | G69: 103.0194406
A70: 69 | B70: 226 | F70: 69 | G70: 103.0169133
A71: 70 | B71: 226 | F71: 70 | G71: 103.0147146
A72: 71 | B72: 226 | F72: 71 | G72: 103.0128017
A73: 72 | B73: 226 | F73: 72 | G73: 103.0111375
A74: 73 | B74: 226 | F74: 73 | G74: 103.0096896
A75: 74 | B75: 226 | F75: 74 | G75: 103.00843
A76: 75 | B76: 226 | F76: 75 | G76: 103.0073341
A77: 76 | B77: 226 | F77: 76 | G77: 103.0063806
A78: 77 | B78: 226 | F78: 77 | G78: 103.0055512
A79: 78 | B79: 226 | F79: 78 | G79: 103.0048295
A80: 79 | B80: 226 | F80: 79 | G80: 103.0042017
A81: 80 | B81: 226 | F81: 80 | G81: 103.0036554
A82: 81 | B82: 226 | F82: 81 | G82: 103.0031802
A83: 82 | B83: 226 | F83: 82 | G83: 103.0027668
A84: 83 | B84: 226 | F84: 83 | G84: 103.0024071
A85: 84 | B85: 226 | F85: 84 | G85: 103.0020942
A86: 85 | B86: 226 | F86: 85 | G86: 103.001822
A87: 86 | B87: 226 | F87: 86 | G87: 103.0015851
A88: 87 | B88: 226 | F88: 87 | G88: 103.001379
A89: 88 | B89: 226 | F89: 88 | G89: 103.0011998
A90: 89 | B90: 226 | F90: 89 | G90: 103.0010438
A91: 90 | B91: 226 | F91: 90 | G91: 103.0009081
A92: 91 | B92: 226 | F92: 91 | G92: 103.00079
A93: 92 | B93: 226 | F93: 92 | G93: 103.0006873
A94: 93 | B94: 226 | F94: 93 | G94: 103.000598
A95: 94 | B95: 226 | F95: 94 | G95: 103.0005202
A96: 95 | B96: 226 | F96: 95 | G96: 103.0004526
A97: 96 | B97: 226 | F97: 96 | G97: 103.0003938
A98: 97 | B98: =R0+(T0-R0)*a^A98 -> 226 | F98: 97 | G98: =R00+(T00-R00)*aa^F98 -> 103.0003426
A99: 98 | B99: =R0+(T0-R0)*a^A99 -> 226 | F99: 98 | G99: =R00+(T00-R00)*aa^F99 -> 103.000298
A100: 99 | B100: =R0+(T0-R0)*a^A100 -> 226 | F100: 99 | G100: =R00+(T00-R00)*aa^F100 -> 103.0002593
A101: 100 | B101: =R0+(T0-R0)*a^A101 -> 226 | F101: 100 | G101: =R00+(T00-R00)*aa^F101 -> 103.0002256

Sheet Sheet4
